bitfinex/quotes_SOLUSD_20250206
["timestamp","ask_amount","ask_price","bid_price","bid_amount"]
[1738844727802,1.5704,199.13,199.11,15.08958349]
[1738844728103,1.5704,199.13,199.1,15.08958349]
[1738844728710,1.5704,199.13,199.11,15.08958349]
[1738844728917,0.063,199.12,199.11,15.08958349]
[1738844729118,0.16130045,199.12,199.11,15.08958349]
[1738844729838,0.16130045,199.12,199.08,15.08958349]
[1738844729997,15.08958349,199.11,199.05,15.08958349]
[1738844730308,0.16130045,199.12,199.1,15.08958349]
[1738844730526,0.16130045,199.12,199.11,15.08958349]
[1738844730711,0.16130045,199.12,199.05,0.12549]
[1738844730712,0.16130045,199.12,199.1,15.08958349]
[1738844730918,0.16130045,199.12,199.09,15.08958349]
[1738844731241,5.18350045,199.12,199.07,15.08958349]
[1738844733123,16.03149308,199.11,199.05,15.08958349]
[1738844733426,103.61504241,199.12,199.06,15.08958349]
[1738844733594,87.58350045,199.12,199.06,15.08958349]
[1738844733800,103.61504297,199.12,199.06,15.08958349]
[1738844734093,102.67308394,199.12,199.06,15.08958349]
[1738844734293,87.58350045,199.12,199.06,15.08958349]
[1738844734507,88.52541074,199.12,199.07,15.08958349]
[1738844735009,88.52541074,199.12,199.04,5.0239]
[1738844735010,88.52541074,199.12,199.06,15.08958349]
[1738844736212,88.52541074,199.12,199.07,15.08958349]
[1738844738429,88.52541074,199.12,199.06,15.08958349]
[1738844738726,103.61499423,199.12,199.06,15.08958349]
[1738844738903,102.67308394,199.12,199.06,15.08958349]
[1738844739303,87.58350045,199.12,199.06,15.08958349]
[1738844739603,88.52542385,199.12,199.06,15.08958349]
[1738844740299,133.61500734,199.12,199.06,15.08958349]
[1738844740503,45.08958349,199.1,199.04,15.08958349]
[1738844740699,46.03162339,199.1,199.04,15.08958349]
[1738844741205,15.08958349,199.09,199.03,15.08958349]
[1738844741400,16.0316651,199.08,199.02,15.08958349]
[1738844742228,21.29738349,199.07,199.01,15.11958349]
[1738844742424,0.94216854,199.06,199.01,15.11958349]
[1738844742629,5.0238,199.05,199.01,0.03]
[1738844742920,5.0238,199.05,199.01,15.11958349]
[1738844743124,5.0236,199.06,199.01,15.11958349]
[1738844743716,88.6078,199.07,199.03,15.08958349]
[1738844744025,83.9386,199.11,199.06,15.08958349]
[1738844744220,83.9386,199.11,199.1,15.08958349]
[1738844744535,83.9386,199.11,199.08,15.08958349]
[1738844745226,82.4,199.11,199.09,15.08958349]
[1738844745731,82.4,199.11,199.03,0.12549]
[1738844745732,0.16130045,199.12,199.1,15.08958349]
[1738844745930,0.16130045,199.12,199.11,15.08958349]
[1738844748008,0.16130045,199.12,199.11,20.11188349]
[1738844748435,0.063,199.12,199.11,20.11188349]
[1738844749031,0.16182801,199.12,199.11,20.11188349]
[1738844749407,0.16182801,199.12,199.11,20.23737349]
[1738844750518,0.16182801,199.12,199.11,20.48835349]
[1738844750713,0.16182801,199.12,199.11,20.61384349]
[1738844750912,0.10733262,199.13,199.12,0.37647]
[1738844751121,3.262e-05,199.13,199.12,15.59154349]
[1738844751321,0.16032587,199.14,199.13,0.12549]
[1738844751631,0.10910854,199.15,199.13,0.12549]
[1738844751632,0.10910854,199.15,199.14,0.37647]
[1738844751821,6.5749,199.24,199.13,15.34056349]
[1738844751822,6.5749,199.24,199.16,0.37647]
[1738844752009,6.5749,199.24,199.16,15.46605349]
[1738844752416,6.5749,199.24,199.16,15.21507349]
[1738844752623,6.5749,199.24,199.16,20.23607349]
[1738844753032,26.68358349,199.24,199.16,20.11058349]
[1738844753231,15.08958349,199.23,199.16,15.08958349]
[1738844753431,22.60582576,199.24,199.16,15.08958349]
[1738844753636,5.0197,199.22,199.16,15.08958349]
[1738844754032,5.11279247,199.2,199.15,15.08958349]
[1738844754222,5.1281482,199.18,199.12,15.08958349]
[1738844754536,16.13839875,199.18,199.11,15.08958349]
[1738844754745,0.1073482,199.18,199.13,15.08958349]
[1738844754920,5.11643566,199.17,199.13,15.08958349]
[1738844755119,5.11643566,199.17,199.12,15.08958349]
[1738844758018,0.09563566,199.17,199.13,15.08958349]
[1738844758243,0.09563566,199.17,199.14,15.08958349]
[1738844758552,0.09563566,199.17,199.15,15.08958349]
[1738844759632,0.09563566,199.17,199.12,15.08958349]
[1738844759942,5.11643566,199.17,199.12,15.08958349]
[1738844760320,6.3861,199.16,199.11,15.08958349]
[1738844760540,21.47568349,199.16,199.09,15.08958349]
[1738844760841,21.47568349,199.16,199.1,15.08958349]
[1738844761542,0.94170238,199.15,199.1,15.08958349]
[1738844761746,6.3861,199.16,199.12,15.08958349]
[1738844761925,6.3861,199.16,199.13,15.08958349]
[1738844762127,6.3861,199.16,199.15,15.08958349]
[1738844762329,1.63513566,199.17,199.15,15.08958349]
[1738844762533,1.63513566,199.17,199.06,17.83358]
[1738844762534,1.63513566,199.17,199.13,15.08958349]
[1738844762846,22.68713616,199.17,199.1,15.08958349]
[1738844763060,15.08958349,199.16,199.09,15.08958349]
[1738844763352,0.94177838,199.15,199.09,15.08958349]
[1738844763544,16.03136187,199.15,199.09,15.08958349]
[1738844763722,5.0215,199.14,199.09,15.08958349]
[1738844765246,5.0215,199.14,199.09,15.11958349]
[1738844765757,5.0215,199.14,199.1,15.08958349]
[1738844767143,1.63513566,199.17,199.13,15.08958349]
[1738844767449,82.4,199.16,199.14,15.08958349]
[1738844767742,82.4,199.16,199.15,15.08958349]
[1738844769040,82.50678783,199.16,199.15,15.08958349]
[1738844770051,0.10678783,199.16,199.15,20.11088349]
[1738844771134,0.10678783,199.16,199.15,20.23637349]
[1738844773052,0.10678783,199.16,199.15,20.48735349]
[1738844773558,0.10678783,199.16,199.15,20.61284349]
[1738844774247,0.10678783,199.16,199.15,20.23637349]
[1738844774850,0.10678783,199.16,199.15,20.11088349]
[1738844777156,0.10678783,199.16,199.15,20.23637349]
[1738844778056,0.10678783,199.16,199.15,18.09592536]
[1738844780751,0.10678783,199.16,199.15,17.97043536]
[1738844780947,0.10678783,199.16,199.12,15.08958349]
[1738844780948,5.12788783,199.16,199.12,15.08958349]
[1738844781161,0.10678783,199.16,199.12,15.08958349]
[1738844781348,0.10678783,199.16,199.14,15.08958349]
[1738844782061,0.10678783,199.16,199.13,15.08958349]
[1738844782543,0.10678783,199.16,199.15,15.08958349]
[1738844783459,0.10678783,199.16,199.13,15.08958349]
[1738844783660,0.10678783,199.16,199.12,15.08958349]
[1738844784254,0.10678783,199.16,199.13,15.08958349]
[1738844785048,0.10678783,199.16,199.14,15.08958349]
[1738844785463,0.10678783,199.16,199.15,15.08958349]
[1738844786167,0.10678783,199.16,199.15,15.21507349]
[1738844786351,0.10678783,199.16,199.15,15.46605349]
[1738844786547,0.09145714,199.18,199.17,0.37647]
[1738844786750,0.09069092,199.24,199.18,0.12549]
[1738844786972,0.09069092,199.24,199.2,30.55563698]
[1738844787439,0.09069092,199.24,199.2,35.57563698]
[1738844787863,0.09069092,199.24,199.22,0.25098]
[1738844788063,0.09069092,199.24,199.22,15.59154349]
[1738844788455,6.2366,199.31,199.24,0.12549]
[1738844789066,0.09681757,199.25,199.24,0.12549]
[1738844789250,0.09681757,199.25,199.24,15.08958349]
[1738844790451,0.09681757,199.25,199.24,20.10858349]
[1738844790848,0.09681757,199.25,199.24,20.23407349]
[1738844791050,0.09681757,199.25,199.24,20.48505349]
[1738844792166,0.09681757,199.25,199.24,20.10858349]
[1738844792379,0.09681757,199.25,199.24,15.08958349]
[1738844793261,0.09681757,199.25,199.24,20.10858349]
[1738844794947,0.09681757,199.25,199.24,20.23407349]
[1738844795877,0.09681757,199.25,199.24,20.35956349]
[1738844797276,0.09681757,199.25,199.24,20.10858349]
[1738844797986,0.09681757,199.25,199.24,15.08958349]
[1738844798200,0.09681757,199.25,199.21,15.08958349]
[1738844798375,15.08958349,199.24,199.18,15.08958349]
[1738844798702,15.08958349,199.24,199.15,0.03]
[1738844798703,15.08958349,199.19,199.15,0.03]
[1738844799281,15.08958349,199.2,199.15,0.03]
[1738844799477,20.10978349,199.2,199.15,0.03]
[1738844800684,29.24315027,199.2,199.15,0.03]
[1738844801469,24.22295027,199.21,199.15,0.03]
[1738844801678,5.0195,199.22,199.16,24.22295027]
[1738844801986,30.18384002,199.22,199.15,24.25295027]
[1738844802887,24.22295027,199.21,199.15,24.25295027]
[1738844803682,30.18384002,199.22,199.15,24.25295027]
[1738844804000,82.4,199.2,199.16,0.12549]
[1738844804284,0.09681757,199.25,199.16,0.37647]
[1738844804867,0.09681757,199.25,199.17,5.0208]
[1738844805068,0.09681757,199.25,199.23,24.22295027]
[1738844807480,5.11561757,199.25,199.2,24.22295027]
[1738844807677,5.11561757,199.25,199.19,24.22295027]
[1738844808187,5.11561757,199.25,199.2,24.22295027]
[1738844808396,5.0185,199.26,199.21,24.22295027]
[1738844808586,84.0223,199.27,199.24,24.22295027]
[1738844808798,82.4,199.27,199.26,24.22295027]
[1738844809089,82.50098528,199.27,199.26,24.22295027]
[1738844809471,82.50098528,199.27,199.25,24.22295027]
[1738844809681,82.50098528,199.27,199.24,24.22295027]
[1738844809866,87.51938528,199.27,199.23,24.22295027]
[1738844810067,87.51938528,199.27,199.22,24.22295027]
[1738844810273,87.51938528,199.27,199.18,5.0205]
[1738844810274,82.50098528,199.27,199.24,24.22295027]
[1738844810882,87.51928528,199.27,199.23,24.22295027]
[1738844811594,87.51928528,199.27,199.22,24.22295027]
[1738844812789,82.4,199.26,199.21,24.22295027]
[1738844813491,82.4,199.26,199.2,24.22295027]
[1738844813714,82.4,199.25,199.19,24.22295027]
[1738844814408,5.019,199.24,199.19,24.22295027]
[1738844815998,82.4,199.23,199.19,24.22295027]
[1738844816309,5.0195,199.22,199.16,24.25295027]
[1738844816495,82.4,199.21,199.17,24.22295027]
[1738844818518,87.4198,199.21,199.16,24.25295027]
[1738844819177,88.36119252,199.21,199.16,24.25295027]
[1738844819505,30.58015027,199.2,199.16,0.03]
[1738844819999,31.52168897,199.2,199.16,0.03]
[1738844820497,11.3774,199.2,199.16,0.03]
[1738844821481,82.4,199.19,199.16,0.03]
[1738844821887,82.4,199.18,199.16,0.03]
[1738844822502,87.4205,199.18,199.16,0.03]
[1738844822703,82.4,199.18,199.17,15.13619346]
[1738844822887,6.3572,199.2,199.17,15.13619346]
[1738844823096,6.3572,199.2,199.19,15.13619346]
[1738844823485,82.4,199.22,199.19,15.13619346]
[1738844823683,82.4,199.22,199.21,15.13619346]
[1738844824693,82.4,199.22,199.21,20.15599346]
[1738844824910,82.4,199.26,199.21,20.15599346]
[1738844825105,82.4,199.25,199.18,0.12549]
[1738844825297,82.4,199.25,199.24,15.13619346]
[1738844826202,82.4,199.25,199.23,15.13619346]
[1738844826613,82.4,199.25,199.23,24.198261]
[1738844827810,82.4,199.25,199.24,24.198261]
[1738844828511,82.4,199.25,199.24,29.217261]
[1738844829009,82.4,199.25,199.24,24.198261]
[1738844829214,82.49919192,199.25,199.24,24.198261]
[1738844829401,82.49919192,199.25,199.24,29.217261]
[1738844829790,82.49919192,199.25,199.22,29.217661]
[1738844830404,82.49919192,199.25,199.24,24.198261]
[1738844831004,82.49919192,199.25,199.23,24.198261]
[1738844832002,82.49919192,199.25,199.24,24.198261]
[1738844833317,82.49919192,199.25,199.24,29.217261]
[1738844833497,0.09919192,199.25,199.24,29.468241]
[1738844834807,9.192e-05,199.25,199.24,29.719221]
[1738844835998,8.509e-05,199.26,199.25,0.25098]
[1738844836197,8.509e-05,199.26,199.25,24.449241]
[1738844837104,8.509e-05,199.26,199.25,29.468041]
[1738844841724,8.509e-05,199.26,199.25,29.217061]
[1738844841927,8.509e-05,199.26,199.25,24.198261]
[1738844842924,8.509e-05,199.26,199.25,29.468041]
[1738844843495,8.509e-05,199.26,199.25,29.217061]
[1738844844120,8.509e-05,199.26,199.23,24.198261]
[1738844844336,82.4,199.25,199.21,24.198261]
[1738844844540,82.4,199.25,199.2,24.198261]
[1738844845001,82.4,199.25,199.21,24.198261]
[1738844845506,82.4,199.25,199.22,24.198261]
[1738844845698,82.4,199.25,199.23,24.198261]
[1738844845934,82.4,199.25,199.24,24.198261]
[1738844846227,82.4,199.25,199.23,24.198261]
[1738844846419,82.4,199.25,199.22,24.198261]
[1738844846731,82.4,199.25,199.21,24.198261]
[1738844848702,82.4,199.25,199.21,15.12675782]
[1738844849104,0.10247439,199.23,199.19,5.0202]
[1738844849302,0.10247439,199.23,199.22,15.12675782]
[1738844850613,0.10247439,199.23,199.22,20.14625782]
[1738844855536,0.10247439,199.23,199.22,20.64821782]
[1738844855734,0.09172938,199.25,199.23,15.62871782]
[1738844856036,0.09697911,199.26,199.25,15.12675782]
[1738844856909,0.09697911,199.26,199.25,20.14555782]
[1738844857506,0.09697911,199.26,199.25,15.12675782]
[1738844857713,0.09697911,199.26,199.24,15.12675782]
[1738844857932,0.09697911,199.26,199.25,15.12675782]
[1738844858316,0.09697911,199.26,199.24,15.12675782]
[1738844858603,0.09697911,199.26,199.25,15.12675782]
[1738844859018,0.09697911,199.26,199.25,20.14555782]
[1738844860030,0.09697911,199.26,199.25,20.39653782]
[1738844862528,0.15997911,199.26,199.25,20.39653782]
[1738844865634,0.15997911,199.26,199.25,20.64751782]
[1738844866312,0.15997911,199.26,199.25,20.39653782]
[1738844868342,0.063,199.26,199.25,20.39653782]
[1738844869215,0.17015172,199.26,199.25,20.39653782]
[1738844874734,0.14008077,199.26,199.25,20.39653782]
[1738844875249,0.14008077,199.26,199.25,20.14555782]
[1738844879157,0.14008077,199.26,199.25,20.39653782]
[1738844880854,0.14008077,199.26,199.25,20.14555782]
[1738844882658,0.14008077,199.26,199.25,14.69289887]
[1738844882953,0.14008077,199.26,199.25,14.94387887]
[1738844884951,0.14008077,199.26,199.25,15.19485887]
[1738844885346,8.077e-05,199.26,199.25,15.19485887]
[1738844885659,0.10489396,199.27,199.26,0.50196]
[1738844885863,0.10489396,199.27,199.26,10.17605887]
[1738844886657,5.097e-05,199.3,199.29,0.12549]
[1738844886858,5.097e-05,199.3,199.29,30.70835974]
[1738844887046,0.10561899,199.35,199.3,1.50196]
[1738844887745,0.10561899,199.35,199.32,15.47966987]
[1738844888143,0.10561899,199.35,199.32,20.49666987]
[1738844888358,0.063,199.37,199.32,20.49666987]
[1738844888359,0.063,199.34,199.33,0.37647]
[1738844888537,0.063,199.34,199.33,15.47966987]
[1738844889134,0.15692952,199.34,199.33,15.47966987]
[1738844889661,0.15692952,199.34,199.33,20.49646987]
[1738844890554,0.15692952,199.34,199.33,20.11999987]
[1738844891359,0.15692952,199.34,199.33,20.37097987]
[1738844891952,0.15692952,199.34,199.33,20.11999987]
[1738844894958,0.15692952,199.34,199.29,15.10319987]
[1738844895156,1.5467,199.32,199.27,20.12149987]
[1738844896264,16.64989987,199.32,199.27,5.0183]
[1738844896474,99.04989987,199.32,199.25,20.15169987]
[1738844897557,104.06689987,199.32,199.26,15.10319987]
[1738844897762,15.10319987,199.3,199.25,0.03]
[1738844898147,83.34090308,199.31,199.25,0.03]
[1738844898352,15.10319987,199.29,199.25,0.03]
[1738844898764,15.10319987,199.27,199.25,0.03]
[1738844898962,6.1288,199.26,199.25,0.03]
[1738844900474,6.1288,199.26,199.25,15.13319987]
[1738844900881,6.2746,199.31,199.25,15.13319987]
[1738844901070,6.2746,199.31,199.28,15.10319987]
[1738844901373,6.2746,199.31,199.27,15.10319987]
[1738844902656,6.2746,199.31,199.28,15.10319987]
[1738844903172,82.4,199.3,199.27,15.10319987]
[1738844903372,82.4,199.3,199.25,20.15169987]
[1738844903558,15.10319987,199.29,199.25,0.03]
[1738844904071,15.10319987,199.28,199.25,0.03]
[1738844904262,82.4,199.27,199.25,0.03]
[1738844904567,82.4,199.26,199.25,0.03]
[1738844904971,97.50319987,199.26,199.25,0.03]
[1738844907454,82.4,199.26,199.25,0.03]
[1738844907969,20.12159987,199.27,199.25,0.03]
[1738844908347,16.04434824,199.3,199.25,0.03]
[1738844908553,5.0178,199.29,199.25,0.03]
[1738844908950,0.94114837,199.3,199.25,0.03]
[1738844909146,0.09547043,199.26,199.25,15.13319987]
[1738844909351,0.09547043,199.26,199.25,0.03]
[1738844909746,0.09547043,199.26,199.25,15.13319987]
[1738844910774,0.09547043,199.26,199.25,0.03]
[1738844913565,5.11397043,199.26,199.25,0.03]
[1738844913759,56.4679703,199.26,199.25,0.03]
[1738844913967,58.2655503,199.26,199.25,0.03]
[1738844914252,70.8119503,199.26,199.22,0.03]
[1738844914552,20.12249987,199.23,199.22,0.03]
[1738844914948,21.06397509,199.23,199.22,0.03]
[1738844917168,21.31495509,199.23,199.22,0.03]
[1738844919377,21.06397509,199.23,199.22,0.03]
[1738844920462,20.12249987,199.23,199.22,0.03]
[1738844920776,21.06390497,199.23,199.22,0.03]
[1738844921085,21.31488497,199.23,199.22,0.03]
[1738844922284,21.06390497,199.23,199.22,0.03]
[1738844923490,21.31488497,199.23,199.22,0.03]
[1738844923864,21.06390497,199.23,199.22,0.03]
[1738844924467,20.12199987,199.25,199.22,0.03]
[1738844924666,5.96006058,199.25,199.22,0.03]
[1738844924869,15.10319987,199.23,199.22,0.03]
[1738844925186,16.04465818,199.23,199.22,0.03]
[1738844925872,21.31493818,199.23,199.22,0.03]
[1738844926670,21.31493818,199.23,199.16,0.03]
[1738844926671,30.0,199.19,199.16,0.03]
[1738844926870,15.10319987,199.17,199.16,0.03]
[1738844927484,21.58849987,199.17,199.16,0.03]
[1738844927872,26.86027987,199.17,199.16,0.03]
[1738844928078,56.86027987,199.17,199.16,0.03]
[1738844928288,26.60929987,199.17,199.16,0.03]
[1738844929070,21.68826454,199.17,199.16,0.03]
[1738844929266,0.063,199.38,199.26,1.0]
[1738844929570,0.063,199.38,199.31,15.10319987]
[1738844929790,0.063,199.38,199.33,15.35417987]
[1738844929988,0.063,199.38,199.33,20.37097987]
[1738844930314,0.063,199.38,199.33,20.11999987]
[1738844933579,0.063,199.38,199.33,15.10319987]
[1738844934792,0.063,199.39,199.33,15.10319987]
[1738844934793,0.052,199.39,199.33,15.10319987]
[1738844936588,15.15519987,199.39,199.33,15.10319987]
[1738844936797,0.052,199.39,199.33,15.10319987]
[1738844937302,0.052,199.39,199.34,15.10319987]
[1738844937678,0.052,199.39,199.33,15.10319987]
[1738844938218,15.15519987,199.39,199.32,15.10319987]
[1738844938503,15.10319987,199.38,199.32,15.10319987]
[1738844938683,15.10319987,199.38,199.29,5.0178]
[1738844938684,15.10319987,199.38,199.31,15.10319987]
[1738844939580,20.11889987,199.38,199.32,15.10319987]
[1738844939780,5.0157,199.38,199.32,15.10319987]
[1738844941010,5.0157,199.38,199.33,15.10319987]
[1738844942302,20.17049987,199.39,199.33,15.10319987]
[1738844942602,5.0673,199.39,199.33,15.10319987]
[1738844943475,5.0673,199.39,199.33,20.11989987]
[1738844943681,5.0673,199.39,199.34,15.10319987]
[1738844946500,82.4,199.38,199.34,15.10319987]
[1738844948309,87.4155,199.38,199.34,15.10319987]
[1738844948489,87.4155,199.38,199.33,15.10319987]
[1738844949087,0.10285635,199.34,199.32,0.063]
[1738844949288,82.4,199.33,199.32,0.063]
[1738844949817,82.4,199.33,199.32,15.16619987]
[1738844950588,82.4,199.33,199.32,20.43417987]
[1738844951511,0.10285635,199.34,199.33,0.25098]
[1738844951686,0.10285635,199.34,199.33,16.10647129]
[1738844952109,0.10285635,199.34,199.33,21.12327129]
[1738844952327,0.10285635,199.34,199.33,21.24876129]
[1738844955541,0.10285635,199.34,199.33,21.12327129]
[1738844957096,0.10285635,199.34,199.33,20.11999987]
[1738844958016,82.50285635,199.34,199.33,15.10319987]
[1738844958916,82.50285635,199.34,199.33,20.11999987]
[1738844959117,82.50285635,199.34,199.33,20.37097987]
[1738844959118,0.10285635,199.34,199.33,20.37097987]
[1738844959308,0.10285635,199.34,199.33,21.12329929]
[1738844960721,0.10768379,199.36,199.34,0.37647]
[1738844960901,0.10768379,199.36,199.35,16.23190207]
[1738844962223,8.379e-05,199.36,199.35,21.37369207]
[1738844963919,8.379e-05,199.36,199.35,21.24820207]
[1738844964711,8.379e-05,199.36,199.35,21.12271207]
[1738844965417,8.379e-05,199.36,199.35,20.11949987]
[1738844968329,0.052,199.39,199.35,20.11949987]
[1738844968513,0.052,199.39,199.37,15.10319987]
[1738844968514,82.4,199.38,199.37,15.10319987]
[1738844968702,0.052,199.39,199.37,15.10319987]
[1738844968907,0.052,199.39,199.36,15.10319987]
[1738844969106,0.09416249,199.38,199.36,15.10319987]
[1738844971036,0.09416249,199.38,199.37,15.10319987]
[1738844973442,0.09416249,199.38,199.37,20.11889987]
[1738844975115,0.09416249,199.38,199.37,15.10319987]
[1738844976838,0.09416249,199.38,199.37,9.66545536]
[1738844984865,0.09416249,199.38,199.33,9.72845536]
[1738844985035,82.4,199.37,199.33,0.063]
[1738844985227,82.4,199.37,199.34,9.66545536]
[1738844986427,82.4,199.37,199.36,9.66545536]
[1738844989230,82.49263422,199.37,199.36,9.66545536]
[1738844990249,82.49263422,199.37,199.36,14.68145536]
[1738844992147,82.49263422,199.37,199.36,14.74445536]
[1738844993229,82.49263422,199.37,199.36,0.063]
[1738844993943,5.10833422,199.37,199.36,0.063]
[1738844995957,0.09263422,199.37,199.36,0.063]
[1738844999841,5.10833422,199.37,199.36,0.063]
[1738845000857,14.77378958,199.37,199.36,0.063]
[1738845001078,5.10833422,199.37,199.36,0.063]
[1738845004665,5.13833422,199.37,199.36,0.063]
[1738845004869,14.80378958,199.37,199.36,0.063]
[1738845007351,5.13833422,199.37,199.36,0.063]
[1738845008371,5.0457,199.37,199.36,0.063]
[1738845009250,5.14050059,199.37,199.36,0.063]
[1738845009584,0.12480059,199.37,199.36,0.063]
[1738845010155,5.14050059,199.37,199.36,0.063]
[1738845012775,14.80595595,199.37,199.36,0.063]
[1738845015278,15.74447968,199.37,199.36,0.063]
[1738845016383,14.80595595,199.37,199.36,0.063]
[1738845016878,5.14050059,199.37,199.36,0.063]
[1738845020981,0.12480059,199.37,199.36,0.063]
[1738845021160,0.12480059,199.37,199.36,9.72845536]
[1738845022675,0.12480059,199.37,199.36,14.74445536]
[1738845024274,0.12480059,199.37,199.36,14.99543536]
[1738845025282,0.12480059,199.37,199.36,15.12092536]
[1738845025484,0.12480059,199.37,199.36,15.87311486]
[1738845025788,0.12480059,199.37,199.36,15.74762486]
[1738845027400,5.9e-07,199.37,199.36,15.99860486]
[1738845027590,4.75e-05,199.38,199.37,0.25098]
[1738845027884,4.75e-05,199.38,199.37,48.5782568]
[1738845028089,0.15497873,199.39,199.37,48.8292368]
[1738845028400,0.052,199.39,199.38,10.66845702]
[1738845028770,0.052,199.39,199.38,15.68395702]
[1738845029165,0.14320068,199.39,199.38,15.68395702]
[1738845031482,0.14320068,199.39,199.38,14.93193536]
[1738845031806,0.14320068,199.39,199.38,9.66545536]
[1738845031976,82.54320068,199.39,199.36,9.72845536]
[1738845032169,82.54320068,199.39,199.36,0.063]
[1738845032979,82.4,199.38,199.36,0.063]
[1738845033180,87.4157,199.38,199.36,0.063]
[1738845033364,82.4,199.38,199.36,0.063]
[1738845033570,82.4,199.37,199.36,0.063]
[1738845035386,0.14320068,199.39,199.36,9.72845536]
[1738845035586,0.14320068,199.39,199.38,9.66545536]
[1738845037374,0.14320068,199.39,199.38,14.68095536]
[1738845038179,0.14320068,199.39,199.38,9.66545536]
[1738845039277,0.14320068,199.39,199.38,14.68095536]
[1738845039481,0.14320068,199.39,199.38,14.93193536]
[1738845040776,0.14320068,199.39,199.38,14.99493536]
[1738845042083,0.14320068,199.39,199.38,14.74395536]
[1738845042985,0.14320068,199.39,199.38,14.99493536]
[1738845045596,0.14320068,199.39,199.38,15.24591536]
[1738845047784,0.14320068,199.39,199.38,14.99493536]
[1738845048478,0.052,199.39,199.38,14.99493536]
[1738845048675,0.052,199.39,199.38,14.74395536]
[1738845049293,0.14824604,199.39,199.38,14.74395536]
[1738845053206,0.14824604,199.39,199.38,0.063]
[1738845053802,0.14824604,199.39,199.38,9.72845536]
[1738845054687,0.14824604,199.39,199.38,14.74395536]
[1738845057386,0.14824604,199.39,199.38,9.72845536]
[1738845060008,0.14824604,199.39,199.38,14.74395536]
[1738845062109,0.14824604,199.39,199.38,15.12042536]
[1738845062288,0.14824604,199.39,199.38,53.9077368]
[1738845063907,0.10016859,199.41,199.4,0.12549]
[1738845064126,0.1557991,199.42,199.41,0.37647]
[1738845064318,0.1557991,199.42,199.41,10.04192536]
[1738845064527,0.09601109,199.43,199.42,0.12549]
[1738845064706,0.09601109,199.43,199.42,10.54292565]
[1738845065407,0.09601109,199.43,199.42,10.91939565]
[1738845065594,1.109e-05,199.43,199.42,10.91939565]
[1738845066171,1.109e-05,199.43,199.42,15.80840565]
[1738845067314,1.109e-05,199.43,199.42,15.93389565]
[1738845068620,0.063,199.44,199.42,15.55742565]
[1738845068797,0.063,199.44,199.43,9.66545536]
[1738845069191,0.1629524,199.44,199.43,9.91643536]
[1738845069706,0.1629524,199.44,199.43,15.68263413]
[1738845069894,0.1629524,199.44,199.43,15.93361413]
[1738845071992,0.1629524,199.44,199.43,15.80812413]
[1738845072312,0.1629524,199.44,199.43,14.67965536]
[1738845072493,0.1629524,199.44,199.43,9.66545536]
[1738845072700,0.1629524,199.44,199.42,9.66545536]
[1738845072896,82.5629524,199.44,199.42,9.66545536]
[1738845073301,90.5000524,199.44,199.4,9.66545536]
[1738845073709,95.5140524,199.44,199.4,9.66545536]
[1738845073884,90.5000524,199.44,199.4,9.66545536]
[1738845074297,82.4,199.43,199.4,9.66545536]
[1738845074508,82.4,199.43,199.38,0.063]
[1738845075102,87.4144,199.43,199.38,0.063]
[1738845076121,82.4,199.43,199.41,9.66545536]
[1738845076295,82.4,199.43,199.42,9.66545536]
[1738845077387,82.4,199.43,199.4,9.66545536]
[1738845077720,82.4,199.43,199.41,9.66545536]
[1738845077934,82.4,199.43,199.42,9.66545536]
[1738845078714,0.1629524,199.44,199.42,14.67995536]
[1738845078916,0.1629524,199.44,199.43,9.91643536]
[1738845079223,0.1629524,199.44,199.43,10.16741536]
[1738845079714,0.03,199.57,199.52,0.50196]
[1738845080027,0.03,199.57,199.56,9.91643536]
[1738845080194,0.03,199.57,199.56,14.92743536]
[1738845081397,0.03,199.57,199.56,15.05292536]
[1738845082603,0.03,199.57,199.56,20.57904632]
[1738845082800,0.03,199.57,199.56,21.33042462]
[1738845083492,0.03,199.57,199.56,20.32806632]
[1738845088716,0.03,199.57,199.56,15.06608632]
[1738845089220,0.12103247,199.57,199.56,15.06608632]
[1738845089727,0.12103247,199.57,199.53,15.06608632]
[1738845089892,0.12103247,199.57,199.47,7.85647782]
[1738845089893,0.12103247,199.57,199.52,15.06608632]
[1738845090093,82.4,199.56,199.54,15.06608632]
[1738845090315,82.4,199.56,199.55,15.06608632]
[1738845090823,82.4,199.56,199.54,15.06608632]
[1738845092214,82.4,199.56,199.53,15.06608632]
[1738845092421,82.4,199.56,199.52,15.06608632]